bitfinex/quotes_SOLUSD_20241111
["timestamp","ask_amount","ask_price","bid_price","bid_amount"]
[1731312224555,15.8107,208.67,208.65,16.55077458]
[1731312224974,15.8107,208.67,208.53,0.1]
[1731312225177,15.8107,208.67,208.62,16.55077458]
[1731312225568,44.6207,208.67,208.62,16.55077458]
[1731312225776,28.81,208.65,208.58,16.55077458]
[1731312226160,28.81,208.65,208.6,16.55077458]
[1731312226460,15.8107,208.67,208.6,16.55077458]
[1731312226668,23.776884,208.66,208.62,16.55077458]
[1731312227875,23.776884,208.66,208.52,2.69208649]
[1731312227876,23.776884,208.66,208.6,16.55077458]
[1731312228081,57.379384,208.66,208.6,16.55077458]
[1731312233376,73.93015858,208.66,208.58,16.55077458]
[1731312233560,28.81,208.61,208.56,16.55077458]
[1731312233879,52.586884,208.6,208.56,16.55077458]
[1731312234376,52.586884,208.6,208.54,16.55077458]
[1731312235568,57.380784,208.6,208.54,16.55077458]
[1731312237779,52.586884,208.6,208.56,16.55077458]
[1731312238586,57.380684,208.6,208.56,16.55077458]
[1731312240264,57.380684,208.6,208.54,16.55077458]
[1731312241065,73.93145858,208.6,208.52,16.55077458]
[1731312241272,52.586884,208.58,208.52,16.55077458]
[1731312241476,52.586884,208.56,208.44,6.3801]
[1731312241680,52.586884,208.56,208.5,16.55077458]
[1731312242967,52.586884,208.56,208.45,16.55077458]
[1731312242968,52.586884,208.56,208.54,16.55077458]
[1731312243267,45.239,208.59,208.54,16.55077458]
[1731312243669,45.239,208.59,208.46,20.0]
[1731312243869,50.0331,208.59,208.53,16.55077458]
[1731312244074,45.239,208.59,208.55,16.55077458]
[1731312244580,52.586884,208.56,208.53,16.55077458]
[1731312245387,57.381684,208.56,208.53,16.55077458]
[1731312245588,57.381684,208.56,208.51,16.55077458]
[1731312247286,52.586884,208.56,208.54,16.55077458]
[1731312247490,52.586884,208.56,208.52,16.55077458]
[1731312248573,52.586884,208.56,208.53,16.55077458]
[1731312249183,52.586884,208.56,208.52,16.55077458]
[1731312250886,52.586884,208.56,208.53,16.55077458]
[1731312251595,52.586884,208.56,208.52,16.55077458]
[1731312252794,52.586884,208.56,208.53,16.55077458]
[1731312253180,52.586884,208.56,208.52,16.55077458]
[1731312254078,16.429,208.59,208.54,16.55077458]
[1731312254275,45.239,208.59,208.56,16.55077458]
[1731312254689,50.0331,208.59,208.56,16.55077458]
[1731312254894,50.0331,208.59,208.52,16.55077458]
[1731312255693,28.81,208.57,208.52,16.55077458]
[1731312256196,28.81,208.55,208.52,16.55077458]
[1731312257393,52.586884,208.54,208.5,16.55077458]
[1731312257586,52.586884,208.54,208.48,16.55077458]
[1731312257973,69.13765858,208.54,208.46,16.55077458]
[1731312258174,52.586884,208.54,208.48,16.55077458]
[1731312258388,52.586884,208.54,208.51,16.55077458]
[1731312258694,52.586884,208.54,208.53,16.55077458]
[1731312259894,52.586884,208.54,208.4,20.0]
[1731312260073,52.586884,208.54,208.49,16.55077458]
[1731312260686,52.586884,208.54,208.51,16.55077458]
[1731312262080,52.586884,208.54,208.53,16.55077458]
[1731312265207,52.586884,208.57,208.53,16.55077458]
[1731312265502,52.586884,208.57,208.55,16.55077458]
[1731312265687,23.776884,208.57,208.55,16.55077458]
[1731312265887,23.776884,208.58,208.55,16.55077458]
[1731312266090,16.429,208.59,208.57,16.55077458]
[1731312268386,16.429,208.59,208.47,14.9994]
[1731312268598,16.429,208.59,208.55,16.55077458]
[1731312270987,23.776884,208.56,208.41,14.9994]
[1731312271186,52.586884,208.54,208.49,16.55077458]
[1731312271788,52.586884,208.54,208.47,16.55077458]
[1731312271992,21.223,208.59,208.45,16.55077458]
[1731312271993,52.586884,208.51,208.45,16.55077458]
[1731312272189,69.13765858,208.49,208.36,14.9994]
[1731312272394,45.36077458,208.43,208.36,16.55077458]
[1731312272595,23.776884,208.42,208.36,16.55077458]
[1731312272894,52.586884,208.4,208.34,16.55077458]
[1731312273294,15.3891,208.41,208.38,16.55077458]
[1731312275008,15.3891,208.41,208.4,16.55077458]
[1731312276407,15.3891,208.41,208.39,16.55077458]
[1731312276608,15.3891,208.41,208.3,16.550775]
[1731312276609,44.1991,208.41,208.3,16.550775]
[1731312276913,52.586884,208.4,208.35,16.55077458]
[1731312279811,52.586884,208.4,208.33,16.55077458]
[1731312280604,52.586884,208.4,208.35,16.55077458]
[1731312284407,23.776884,208.4,208.37,16.55077458]
[1731312285313,15.3891,208.41,208.37,16.55077458]
[1731312285512,15.3891,208.41,208.39,16.55077458]
[1731312285904,30.0,208.4,208.39,16.55077458]
[1731312287809,30.0,208.4,208.37,16.55077458]
[1731312288012,23.776884,208.39,208.35,16.55077458]
[1731312288397,30.0,208.38,208.35,16.55077458]
[1731312288697,23.776884,208.37,208.33,16.55077458]
[1731312289599,30.0,208.36,208.35,16.55077458]
[1731312289800,52.586884,208.39,208.35,16.55077458]
[1731312290415,52.586884,208.39,208.34,16.55077458]
[1731312291712,52.586884,208.39,208.32,16.55077458]
[1731312293316,57.385584,208.39,208.32,16.55077458]
[1731312296013,57.385584,208.39,208.25,22.52217524]
[1731312296218,28.81,208.36,208.24,6.4729]
[1731312296426,16.55077458,208.37,208.3,16.55077458]
[1731312296427,23.776884,208.33,208.3,16.55077458]
[1731312296721,28.81,208.34,208.32,16.55077458]
[1731312297022,23.776884,208.37,208.32,16.55077458]
[1731312297324,28.81,208.38,208.36,16.55077458]
[1731312297900,28.81,208.4,208.36,16.55077458]
[1731312298717,28.81,208.38,208.36,16.55077458]
[1731312299040,23.776884,208.37,208.36,16.55077458]
[1731312300015,23.776884,208.37,208.34,16.55077458]
[1731312300716,52.586884,208.37,208.32,16.55077458]
[1731312302305,57.386084,208.37,208.32,16.55077458]
[1731312303209,28.81,208.35,208.28,16.55077458]
[1731312303519,52.586884,208.32,208.28,16.55077458]
[1731312305799,52.586884,208.32,208.23,20.39912679]
[1731312305999,28.81,208.35,208.3,16.55077458]
[1731312306206,28.81,208.33,208.3,16.55077458]
[1731312306419,28.81,208.33,208.32,16.55077458]
[1731312306931,28.81,208.38,208.32,16.55077458]
[1731312307310,20.1875,208.41,208.35,16.55077458]
[1731312307311,28.81,208.37,208.35,16.55077458]
[1731312308009,28.81,208.37,208.33,16.55077458]
[1731312308405,4.7987,208.39,208.33,16.55077458]
[1731312308406,28.81,208.36,208.33,16.55077458]
[1731312308808,28.81,208.36,208.31,16.55077458]
[1731312309105,28.81,208.34,208.31,16.55077458]
[1731312309505,28.81,208.34,208.32,9.24505211]
[1731312309916,28.81,208.38,208.31,16.55077458]
[1731312310218,23.776884,208.35,208.33,16.55077458]
[1731312310425,52.586884,208.35,208.33,16.55077458]
[1731312311626,52.586884,208.35,208.32,16.55077458]
[1731312311832,52.586884,208.35,208.28,16.55077458]
[1731312312931,52.586884,208.35,208.3,16.55077458]
[1731312313428,57.386484,208.35,208.3,16.55077458]
[1731312313628,57.386484,208.35,208.28,16.55077458]
[1731312314012,85.45189837,208.35,208.26,16.55077458]
[1731312314212,85.45189837,208.35,208.24,9.24860381]
[1731312314423,85.45189837,208.35,208.27,16.55077458]
[1731312314929,52.586884,208.33,208.27,16.55077458]
[1731312315317,23.776884,208.3,208.25,16.55077458]
[1731312315632,28.81,208.27,208.23,17.85321663]
[1731312316014,28.81,208.27,208.23,1.30244205]
[1731312316317,52.586884,208.26,208.23,1.30244205]
[1731312317014,28.81,208.26,208.23,17.85321663]
[1731312317218,52.586884,208.29,208.25,16.55077458]
[1731312317414,52.586884,208.29,208.26,16.55077458]
[1731312317936,28.81,208.29,208.26,16.55077458]
[1731312318226,21.2803,208.34,208.27,16.55077458]
[1731312318429,28.81,208.31,208.28,16.55077458]
[1731312318831,28.81,208.31,208.29,16.55077458]
[1731312319418,28.81,208.32,208.29,16.55077458]
[1731312319921,28.81,208.32,208.31,16.55077458]
[1731312320228,16.4803,208.34,208.31,16.55077458]
[1731312320429,45.2603,208.34,208.32,16.55077458]
[1731312321239,28.78,208.34,208.32,16.55077458]
[1731312321558,28.78,208.37,208.33,16.55077458]
[1731312322429,50.12987458,208.37,208.24,20.0]
[1731312322631,50.12987458,208.37,208.28,16.55077458]
[1731312322832,50.12987458,208.37,208.23,1.30244205]
[1731312322833,28.78,208.34,208.23,1.30244205]
[1731312323039,28.78,208.32,208.24,16.55077458]
[1731312323231,28.78,208.3,208.26,16.55077458]
[1731312327139,23.776884,208.29,208.24,16.55077458]
[1731312328141,52.556884,208.29,208.24,16.55077458]
[1731312331447,52.556884,208.29,208.26,16.55077458]
[1731312331744,28.78,208.29,208.26,16.55077458]
[1731312333451,16.0218,208.3,208.28,16.55077458]
[1731312333648,52.556884,208.34,208.28,16.55077458]
[1731312333947,22.5929,208.41,208.33,16.55077458]
[1731312334150,22.5929,208.41,208.26,0.2]
[1731312334151,22.5929,208.41,208.37,16.55077458]
[1731312334354,22.5929,208.41,208.36,16.55077458]
[1731312334655,28.78,208.4,208.36,16.55077458]
[1731312335129,23.776884,208.39,208.36,16.55077458]
[1731312336256,28.78,208.38,208.36,16.55077458]
[1731312338059,28.78,208.38,208.34,16.55077458]
[1731312338263,28.78,208.36,208.32,16.55077458]
[1731312338849,28.78,208.34,208.3,16.55077458]
[1731312339353,28.78,208.32,208.3,16.55077458]
[1731312340662,28.78,208.34,208.3,16.55077458]
[1731312340855,28.78,208.32,208.3,16.55077458]
[1731312341065,28.78,208.36,208.31,16.55077458]
[1731312341349,28.78,208.36,208.35,16.55077458]
[1731312341955,23.776884,208.39,208.35,16.55077458]
[1731312341956,28.78,208.38,208.35,16.55077458]
[1731312342851,28.78,208.38,208.37,16.55077458]
[1731312343050,45.1994,208.41,208.37,16.55077458]
[1731312343267,45.1994,208.41,208.4,16.55077458]
[1731312343559,45.1994,208.41,208.36,16.55077458]
[1731312343855,49.9976,208.41,208.34,16.55077458]
[1731312344078,28.78,208.39,208.34,16.55077458]
[1731312344356,28.78,208.37,208.25,20.0]
[1731312344561,28.78,208.35,208.27,16.55077458]
[1731312344740,28.78,208.35,208.28,36.55077458]
[1731312344940,28.78,208.35,208.3,16.55077458]
[1731312346563,34.9518,208.37,208.34,16.55077458]
[1731312346740,28.78,208.37,208.35,16.55077458]
[1731312347158,52.556884,208.36,208.33,16.55077458]
[1731312347366,52.556884,208.36,208.32,16.55077458]
[1731312354960,52.556884,208.36,208.34,16.55077458]
[1731312355166,23.776884,208.37,208.34,16.55077458]
[1731312355468,52.556884,208.37,208.36,16.55077458]
[1731312357655,52.556884,208.37,208.34,16.55077458]
[1731312359969,52.556884,208.37,208.36,16.55077458]
[1731312362664,28.78,208.42,208.37,20.0]
[1731312362872,28.78,208.42,208.41,16.55077458]
[1731312363062,28.78,208.42,208.35,20.0]
[1731312363367,28.78,208.42,208.39,16.55077458]
[1731312363551,16.1062,208.47,208.39,16.55077458]
[1731312363552,28.78,208.44,208.39,16.55077458]
[1731312363747,28.78,208.42,208.39,16.55077458]
[1731312364560,28.78,208.42,208.32,0.1]
[1731312364762,52.556884,208.42,208.41,16.55077458]
[1731312364952,20.9032,208.47,208.41,16.55077458]
[1731312364953,28.78,208.46,208.41,16.55077458]
[1731312365154,28.78,208.46,208.35,0.1]
[1731312365155,28.78,208.46,208.44,16.55077458]
[1731312365754,28.78,208.46,208.4,16.55077458]
[1731312366356,28.78,208.46,208.42,16.55077458]
[1731312366560,28.78,208.46,208.44,16.55077458]
[1731312367177,28.78,208.51,208.44,16.55077458]
[1731312367377,28.78,208.51,208.49,16.55077458]
[1731312369754,28.78,208.49,208.37,0.1]
[1731312370072,28.78,208.49,208.44,16.55077458]
[1731312370377,28.78,208.47,208.43,16.55077458]
[1731312371279,52.556884,208.46,208.43,16.55077458]
[1731312371478,28.78,208.46,208.43,16.55077458]
[1731312372369,28.78,208.47,208.43,16.55077458]
[1731312373161,29.6142,208.43,208.23,1.40244205]
[1731312373478,16.55077458,208.3,208.23,1.30244205]
[1731312373652,45.33077458,208.28,208.23,1.30244205]
[1731312373857,52.556884,208.27,208.23,1.30244205]
[1731312374108,16.55077458,208.28,208.23,1.30244205]
[1731312374109,52.556884,208.24,208.23,1.30244205]
[1731312374275,69.10765858,208.24,208.23,1.30244205]
[1731312375154,90.56053316,208.24,208.09,16.55077458]
[1731312375355,52.556884,208.16,208.09,16.55077458]
[1731312375780,16.55077458,208.15,208.07,16.55077458]
[1731312375952,23.776884,208.14,208.07,16.55077458]
[1731312376153,23.776884,208.1,208.03,16.55077458]
[1731312376358,16.55077458,208.09,208.01,16.55077458]
[1731312376664,0.1,208.18,207.95,6.2118]
[1731312376665,16.55077458,208.11,208.03,16.55077458]
[1731312376966,23.776884,208.11,208.04,26.59019479]
[1731312377363,26.59019479,208.1,208.02,26.59019479]
[1731312378659,23.776884,208.09,208.02,26.59019479]
[1731312381263,26.59019479,208.08,208.0,26.59019479]
[1731312383484,23.776884,208.18,208.04,26.59019479]
[1731312383778,26.59019479,208.15,208.06,26.59019479]
[1731312384569,26.59019479,208.13,208.06,26.59019479]
[1731312384883,26.59019479,208.15,208.06,26.59019479]
[1731312385672,4.8039,208.17,208.06,26.59019479]
[1731312385870,26.59019479,208.15,208.06,26.59019479]
[1731312386176,23.776884,208.14,208.06,26.59019479]
[1731312386579,23.776884,208.14,208.08,26.59019479]
[1731312386772,26.59019479,208.17,208.1,26.59019479]
[1731312386979,33.05599479,208.19,208.1,26.59019479]
[1731312387176,33.05599479,208.19,208.12,26.59019479]
[1731312387569,33.05599479,208.19,208.1,26.59019479]
[1731312387972,33.05599479,208.19,208.12,26.59019479]
[1731312388308,26.59019479,208.21,208.12,26.59019479]
[1731312389290,23.776884,208.2,208.12,26.59019479]
[1731312390766,23.776884,208.18,208.12,26.59019479]
[1731312391392,52.556884,208.18,208.1,26.59019479]
[1731312391682,57.360484,208.18,208.1,26.59019479]
[1731312392482,55.37019479,208.15,208.06,26.59019479]
[1731312392694,30.0,208.12,208.06,26.59019479]
[1731312393372,30.0,208.12,208.08,26.59019479]
[1731312394690,52.556884,208.18,208.11,26.59019479]
[1731312394881,52.556884,208.18,208.14,26.59019479]
[1731312395088,26.59019479,208.21,208.14,26.59019479]
[1731312395392,26.59019479,208.21,208.12,26.59019479]
[1731312395588,26.59019479,208.21,208.14,26.59019479]
[1731312395896,55.37019479,208.21,208.14,26.59019479]
[1731312396083,28.78,208.21,208.16,26.59019479]
[1731312396879,28.78,208.22,208.16,26.59019479]
[1731312397599,23.776884,208.21,208.14,26.59019479]
[1731312399097,28.579784,208.21,208.14,26.59019479]
[1731312399394,83.94997879,208.21,208.12,26.59019479]
[1731312399593,50.36707879,208.17,208.1,26.59019479]
[1731312399972,26.59019479,208.15,208.08,26.59019479]
[1731312400195,50.36707879,208.17,208.08,26.59019479]
[1731312400396,50.36707879,208.17,208.1,26.59019479]
[1731312400889,28.78,208.16,208.1,26.59019479]
[1731312401076,28.78,208.16,208.12,26.59019479]
[1731312401594,28.78,208.16,208.14,26.59019479]
[1731312402092,28.78,208.2,208.14,26.59019479]
[1731312402902,28.78,208.2,208.15,16.60058972]
[1731312403877,28.78,208.2,208.13,16.60058972]
[1731312405000,28.78,208.2,208.15,16.60058972]
[1731312406581,28.78,208.2,208.13,16.60058972]
[1731312411696,23.776884,208.23,208.18,16.60058972]
[1731312411888,28.78,208.22,208.18,16.60058972]
[1731312412386,28.78,208.22,208.12,16.60058972]
[1731312412387,28.78,208.22,208.2,16.60058972]
[1731312412894,28.78,208.27,208.2,16.60058972]
[1731312413093,33.5814,208.27,208.2,16.60058972]
[1731312413411,28.78,208.27,208.22,16.60058972]
[1731312413581,33.5815,208.27,208.22,16.60058972]
[1731312413782,28.78,208.25,208.2,16.60058972]
[1731312415988,16.60058972,208.22,208.07,0.1]
[1731312416201,69.15747372,208.2,208.09,0.1]
[1731312416411,28.78,208.2,208.17,16.60058972]
[1731312416702,52.556884,208.25,208.19,16.60058972]
[1731312419187,57.358784,208.25,208.19,16.60058972]
[1731312420403,57.358784,208.25,207.52,817.55034467]
[1731312420404,28.78,208.21,208.15,16.60058972]
[1731312420619,52.556884,208.2,208.13,16.60058972]
[1731312420790,52.556884,208.2,208.14,16.60058972]
[1731312420980,52.556884,208.2,208.09,0.1]
[1731312420981,52.556884,208.2,208.15,16.60058972]
[1731312421709,52.556884,208.2,208.14,16.60058972]
[1731312421907,57.359984,208.2,208.14,16.60058972]
[1731312422092,57.359984,208.2,208.13,16.60058972]
[1731312423196,45.38058972,208.19,208.13,16.60058972]
[1731312423505,28.78,208.19,208.13,16.60058972]
[1731312423911,28.78,208.19,208.05,0.1]
[1731312423912,28.78,208.19,208.11,16.60058972]
[1731312424290,28.78,208.19,208.13,16.60058972]
[1731312424490,28.78,208.18,208.13,16.60058972]
[1731312424689,28.78,208.22,208.17,16.60058972]
[1731312424883,28.78,208.22,208.18,16.60058972]
[1731312425393,28.78,208.23,208.18,16.60058972]
[1731312425789,28.78,208.23,208.12,16.70058972]
[1731312425790,28.78,208.23,208.2,16.60058972]
[1731312426110,16.60058972,208.27,208.12,16.80058972]
[1731312426111,28.78,208.27,208.22,16.60058972]
[1731312426303,28.78,208.27,208.25,16.60058972]
[1731312426499,21.682,208.3,208.17,0.1]
[1731312426500,28.78,208.29,208.23,16.60058972]
[1731312426703,28.78,208.26,208.14,20.1]
[1731312426888,28.78,208.26,208.14,20.0]
[1731312427088,4.801,208.29,208.1,0.2]
[1731312427089,28.78,208.22,208.16,16.60058972]
[1731312427688,28.78,208.18,208.14,16.60058972]
[1731312428091,28.78,208.18,208.12,16.60058972]
[1731312428296,28.78,208.18,208.14,16.60058972]
[1731312428700,28.78,208.17,208.14,16.60058972]
[1731312429010,28.78,208.17,208.13,26.56772763]
[1731312429816,28.78,208.18,208.13,26.56772763]
[1731312430603,28.78,208.18,208.11,26.56772763]
[1731312430812,15.5815,208.17,208.11,26.56772763]
[1731312431007,15.5815,208.17,208.13,26.56772763]
[1731312431195,15.5815,208.17,208.15,26.56772763]
[1731312431923,15.5815,208.17,208.13,26.56772763]
[1731312432101,15.5815,208.17,208.11,26.56772763]
[1731312434010,15.5815,208.17,208.13,26.56772763]
[1731312434210,15.5815,208.17,208.15,26.56772763]
[1731312434395,15.4617,208.22,208.15,26.56772763]
[1731312434711,16.6353,208.27,208.2,26.56772763]
[1731312434908,16.6353,208.27,208.22,26.56772763]
[1731312435296,16.6353,208.27,208.2,26.56772763]
[1731312435896,21.4368,208.27,208.2,26.56772763]
[1731312436209,21.4368,208.27,208.14,0.1]
[1731312436210,16.6353,208.27,208.22,26.56772763]
[1731312436410,16.6353,208.27,208.25,26.56772763]
[1731312438812,23.776884,208.31,208.25,26.56772763]
[1731312439493,16.6492,208.32,208.29,26.56772763]
[1731312439700,16.6492,208.32,208.31,26.56772763]
[1731312439915,28.78,208.36,208.31,26.56772763]
[1731312440606,6.4229,208.38,208.31,26.56772763]
[1731312441312,6.4229,208.38,208.33,26.56772763]
[1731312441521,6.4229,208.38,208.35,26.56772763]
[1731312441696,6.4229,208.38,208.33,26.56772763]
[1731312442319,6.4229,208.38,208.35,26.56772763]
[1731312442812,6.0358,208.43,208.37,26.56772763]
[1731312443017,6.0358,208.43,208.41,26.56772763]
[1731312443418,16.304,208.47,208.41,26.56772763]
[1731312444601,16.304,208.47,208.43,26.56772763]
[1731312446304,26.56772763,208.53,208.34,26.56772763]
[1731312446305,15.9035,208.53,208.45,26.56772763]
[1731312446519,15.9035,208.53,208.48,26.56772763]
[1731312446721,15.9035,208.53,208.41,0.2]
[1731312446722,31.36192763,208.59,208.52,26.56772763]
[1731312447022,26.56772763,208.57,208.5,26.56772763]
[1731312447720,4.7947,208.56,208.48,26.56772763]
[1731312448108,22.3147,208.5,208.31,110.6316]
[1731312448312,26.56772763,208.41,208.25,15.3316]
[1731312448519,23.776884,208.38,208.31,26.56772763]
[1731312448700,23.776884,208.4,208.33,26.56772763]
[1731312448905,23.776884,208.4,208.27,0.1]
[1731312448906,23.776884,208.4,208.35,26.56772763]
[1731312449213,26.56772763,208.43,208.35,26.56772763]
[1731312449214,23.776884,208.42,208.35,26.56772763]
[1731312449404,23.776884,208.4,208.31,26.56772763]
[1731312449608,23.776884,208.38,208.31,26.56772763]
[1731312449803,23.776884,208.36,208.29,26.56772763]
[1731312451116,26.56772763,208.35,208.27,26.56772763]
[1731312452017,26.56772763,208.35,208.25,26.56772763]
[1731312452527,26.56772763,208.33,208.25,26.56772763]
[1731312452704,26.56772763,208.31,208.23,26.56772763]
[1731312453406,26.56772763,208.33,208.25,26.56772763]
[1731312453609,23.776884,208.34,208.27,26.56772763]
[1731312454205,41.94162763,208.37,208.29,26.56772763]
[1731312454424,15.3739,208.37,208.31,26.56772763]
[1731312455924,46.74082763,208.37,208.29,26.56772763]
[1731312456322,46.74082763,208.37,208.24,0.1]
[1731312456323,15.3739,208.37,208.31,26.56772763]
[1731312456648,15.3739,208.37,208.33,26.56772763]
[1731312457920,15.3739,208.37,208.31,26.56772763]
[1731312458239,20.1732,208.37,208.31,26.56772763]
[1731312459503,15.3739,208.37,208.31,26.56772763]
[1731312460304,15.3985,208.42,208.36,26.56772763]
[1731312460525,20.1965,208.42,208.36,26.56772763]
[1731312461108,20.1965,208.42,208.34,26.56772763]
[1731312461307,20.1965,208.42,208.36,26.56772763]
[1731312461529,15.3985,208.42,208.36,26.56772763]
[1731312461826,20.1965,208.42,208.36,26.56772763]
[1731312464151,20.1965,208.42,208.34,26.56772763]
[1731312465231,20.1965,208.42,208.32,26.56772763]
[1731312465232,26.56772763,208.39,208.32,26.56772763]
[1731312465444,26.56772763,208.37,208.3,26.56772763]
[1731312465724,28.78,208.34,208.28,26.56772763]
[1731312465930,28.78,208.34,208.26,26.56772763]
[1731312466525,28.78,208.32,208.26,26.56772763]
[1731312467023,28.78,208.32,208.24,26.56772763]
[1731312467328,28.78,208.3,208.24,26.56772763]
[1731312467828,28.78,208.3,208.22,26.56772763]
[1731312468030,28.78,208.3,208.23,26.56772763]
[1731312468329,55.34772763,208.28,208.19,26.56772763]
[1731312468505,28.78,208.26,208.19,26.56772763]
[1731312468706,55.34772763,208.26,208.19,26.56772763]
[1731312469314,60.14962763,208.26,208.17,26.56772763]
[1731312469527,26.56772763,208.24,208.17,26.56772763]
[1731312469749,55.34772763,208.24,208.15,26.56772763]
[1731312470432,28.78,208.22,208.15,26.56772763]
[1731312470729,55.34772763,208.22,208.09,2.67913602]
[1731312470911,55.34772763,208.22,208.14,26.56772763]
[1731312471533,23.776884,208.23,208.16,26.56772763]
[1731312471916,52.556884,208.24,208.16,26.56772763]
[1731312472830,83.92681163,208.24,208.16,26.56772763]
[1731312474115,78.92681163,208.24,208.16,26.56772763]
[1731312475133,78.92681163,208.24,208.09,2.74354777]
[1731312475134,26.56772763,208.22,208.14,26.56772763]
[1731312475336,55.34772763,208.22,208.12,26.56772763]
[1731312475537,55.34772763,208.22,208.14,26.56772763]
[1731312476141,55.34772763,208.22,208.12,26.56772763]
[1731312476831,4.8028,208.21,208.12,26.56772763]
[1731312477222,26.56772763,208.2,208.12,26.56772763]
[1731312477936,31.37082763,208.2,208.12,26.56772763]
[1731312478440,52.556884,208.21,208.14,26.56772763]
[1731312479338,52.556884,208.21,208.12,26.56772763]
[1731312479339,26.56772763,208.2,208.12,26.56772763]
[1731312479521,31.37082763,208.2,208.12,26.56772763]
[1731312480038,60.15082763,208.2,208.12,26.56772763]
[1731312480422,44.0983,208.19,208.12,26.56772763]
[1731312481245,48.9017,208.19,208.1,26.56772763]
[1731312481741,48.9017,208.19,208.12,26.56772763]
[1731312482127,28.78,208.17,208.1,26.56772763]
[1731312483425,28.78,208.18,208.12,26.56772763]
[1731312483743,6.5115,208.29,208.18,0.1]
[1731312484044,15.6785,208.33,208.27,26.56772763]
[1731312484217,15.6785,208.33,208.23,26.56772763]
[1731312484218,15.6785,208.33,208.29,26.56772763]
[1731312484422,15.6785,208.33,208.2,0.2]
[1731312484423,15.6785,208.33,208.27,26.56772763]
[1731312484723,26.56772763,208.28,208.19,26.56772763]
[1731312484928,20.6786,208.33,208.12,32.87852763]
[1731312484929,28.78,208.25,208.17,26.56772763]
[1731312485227,28.78,208.23,208.15,26.56772763]
[1731312485543,28.78,208.21,208.15,26.56772763]
[1731312485742,28.78,208.21,208.13,26.56772763]
[1731312485926,42.24622763,208.2,208.13,26.56772763]
[1731312486239,42.24622763,208.2,208.02,6.4108]
[1731312486240,28.78,208.17,208.02,6.3108]
[1731312486441,26.56772763,208.14,208.06,26.56772763]
[1731312486626,61.77562763,208.12,208.04,26.56772763]
[1731312487143,61.77562763,208.12,208.0,7.42602886]
[1731312487144,35.2079,208.12,208.06,26.56772763]
[1731312488028,6.4279,208.12,208.08,26.56772763]
[1731312488329,6.4279,208.12,208.1,26.56772763]
[1731312488631,6.4279,208.12,208.08,26.56772763]
[1731312489350,6.4279,208.12,208.06,26.56772763]
[1731312490029,6.4279,208.12,208.08,26.56772763]
[1731312493647,6.0163,208.17,208.1,26.56772763]
[1731312493845,15.6785,208.2,208.16,26.56772763]
[1731312494632,15.6785,208.2,208.14,26.56772763]
[1731312494834,15.6785,208.2,208.02,22.53477436]
[1731312494835,15.6785,208.2,208.12,26.56772763]
[1731312495450,23.776884,208.19,208.12,26.56772763]
[1731312495648,28.580284,208.19,208.12,26.56772763]
[1731312495824,23.776884,208.17,208.1,26.56772763]
[1731312497043,23.776884,208.19,208.14,26.56772763]
[1731312497234,23.776884,208.17,208.1,26.56772763]
[1731312497432,47.04932763,208.2,208.12,26.56772763]
[1731312497634,23.776884,208.19,208.1,26.56772763]
[1731312497833,26.56772763,208.18,208.1,26.56772763]
[1731312498259,23.776884,208.17,208.1,26.56772763]
[1731312498744,23.776884,208.17,208.12,26.56772763]
[1731312498944,23.776884,208.19,208.12,26.56772763]
[1731312500729,28.78,208.18,208.14,16.60277562]
[1731312503336,15.6785,208.2,208.14,16.60277562]
[1731312503535,15.6785,208.2,208.16,16.60277562]
[1731312504839,44.4585,208.2,208.14,16.60277562]
[1731312505151,44.4585,208.2,208.07,20.0]
[1731312505152,65.86437562,208.2,208.12,16.60277562]
[1731312505739,28.78,208.18,208.12,16.60277562]
[1731312506060,37.08437562,208.2,208.01,19.2900104]
[1731312506061,45.38277562,208.16,208.08,16.60277562]
[1731312506559,50.18687562,208.16,208.08,16.60277562]
[1731312506862,33.5841,208.16,208.08,16.60277562]
[1731312507056,50.18687562,208.16,208.08,16.60277562]
[1731312509141,23.776884,208.15,208.08,16.60277562]
[1731312509341,28.78,208.14,208.08,16.60277562]
[1731312510460,28.78,208.15,208.13,16.60277562]
[1731312510658,33.5835,208.18,208.13,16.60277562]